bitfinex/quotes_BTCUSD_20240927
["timestamp","ask_amount","ask_price","bid_price","bid_amount"]
[1727478668429,0.60122763,65999.0,65998.0,0.0218852]
[1727478668695,0.60122763,65999.0,65998.0,0.001656]
[1727478668911,0.48680506,65999.0,65998.0,0.001656]
[1727478669347,0.60122763,65999.0,65998.0,0.001656]
[1727478670452,0.71478477,65999.0,65998.0,0.001656]
[1727478671102,0.60122763,65999.0,65998.0,0.001656]
[1727478672094,0.71475152,65999.0,65998.0,0.001656]
[1727478672536,0.60122763,65999.0,65998.0,0.001656]
[1727478673713,0.71470704,65999.0,65998.0,0.001656]
[1727478674190,0.60122763,65999.0,65998.0,0.001656]
[1727478674448,0.69199733,65999.0,65998.0,0.001656]
[1727478675132,0.69199522,65999.0,65998.0,0.001656]
[1727478676542,0.60122763,65999.0,65998.0,0.001656]
[1727478676779,0.69199522,65999.0,65998.0,0.001656]
[1727478677513,0.60122763,65999.0,65998.0,0.001656]
[1727478677749,0.69195999,65999.0,65998.0,0.001656]
[1727478678655,0.60122763,65999.0,65998.0,0.001656]
[1727478680612,0.66925662,65999.0,65998.0,0.001656]
[1727478680830,0.6692566,65999.0,65998.0,0.001656]
[1727478681042,0.60122763,65999.0,65998.0,0.001656]
[1727478681497,0.66925317,65999.0,65998.0,0.001656]
[1727478682225,0.60122763,65999.0,65998.0,0.001656]
[1727478682464,0.66925358,65999.0,65998.0,0.001656]
[1727478685218,0.64381368,65999.0,65998.0,0.001656]
[1727478685576,0.1,65998.0,65992.0,0.001656]
[1727478685820,0.34375357,65993.0,65992.0,0.001656]
[1727478686258,0.38910127,65993.0,65992.0,0.001656]
[1727478686890,0.41286026,65993.0,65992.0,0.001656]
[1727478687787,0.41286026,65993.0,65992.0,0.004656]
[1727478688000,0.54548933,65993.0,65992.0,0.006656]
[1727478688208,0.64258933,65993.0,65992.0,0.006656]
[1727478688432,0.59724163,65993.0,65992.0,0.006656]
[1727478689313,0.64258933,65993.0,65992.0,0.003656]
[1727478689771,0.64258933,65993.0,65992.0,0.004656]
[1727478690212,0.64258933,65993.0,65992.0,0.001656]
[1727478690446,0.60024163,65993.0,65992.0,0.001656]
[1727478690670,0.64958933,65993.0,65992.0,0.001656]
[1727478691333,0.67334883,65993.0,65992.0,0.001656]
[1727478692202,0.67334045,65993.0,65992.0,0.001656]
[1727478692448,0.60424163,65993.0,65992.0,0.001656]
[1727478692658,0.64958095,65993.0,65992.0,0.001656]
[1727478692837,0.60424163,65993.0,65992.0,0.001656]
[1727478693256,0.48981906,65993.0,65992.0,0.001656]
[1727478693427,0.60424163,65993.0,65992.0,0.001656]
[1727478695491,0.62800084,65993.0,65992.0,0.001656]
[1727478696239,0.47146732,65993.0,65992.0,0.001656]
[1727478696903,0.44770811,65993.0,65992.0,0.001656]
[1727478698597,0.49305791,65993.0,65992.0,0.001656]
[1727478698830,0.44770811,65993.0,65992.0,0.001656]
[1727478699045,0.33328554,65993.0,65992.0,0.001656]
[1727478699298,0.60409617,65993.0,65992.0,0.001656]
[1727478699502,0.64944597,65993.0,65992.0,0.001656]
[1727478700129,0.67320513,65993.0,65992.0,0.001656]
[1727478701237,0.64944597,65993.0,65992.0,0.001656]
[1727478702499,0.60409617,65993.0,65992.0,0.001656]
[1727478702942,0.64948243,65993.0,65992.0,0.001656]
[1727478703372,0.60409617,65993.0,65992.0,0.001656]
[1727478703577,0.60409617,65993.0,65992.0,0.00149584]
[1727478703775,0.60409617,65993.0,65992.0,0.00049584]
[1727478704236,0.62785521,65993.0,65992.0,0.00049584]
[1727478704451,0.69587992,65993.0,65992.0,0.00049584]
[1727478705444,0.62785521,65993.0,65992.0,0.00049584]
[1727478705848,0.71869271,65993.0,65992.0,0.00049584]
[1727478706428,0.62785521,65993.0,65992.0,0.00049584]
[1727478706840,0.71869402,65993.0,65992.0,0.00049584]
[1727478707307,0.62785521,65993.0,65992.0,0.00049584]
[1727478708396,0.7414372,65993.0,65992.0,0.00049584]
[1727478709465,0.62785521,65993.0,65992.0,0.00049584]
[1727478711888,0.35704458,65993.0,65992.0,0.00049584]
[1727478712109,0.39366715,65993.0,65992.0,0.00049584]
[1727478718123,0.52996554,65993.0,65992.0,0.00049584]
[1727478718372,0.60536554,65993.0,65992.0,0.00049584]
[1727478719952,0.60702154,65993.0,65992.0,0.00049584]
[1727478720168,0.66381761,65993.0,65992.0,0.00049584]
[1727478720564,0.52751922,65993.0,65992.0,0.00049584]
[1727478723776,0.41309665,65993.0,65992.0,0.00049584]
[1727478724192,0.52751922,65993.0,65992.0,0.00049584]
[1727478734646,0.47613368,65993.0,65983.0,0.2273175]
[1727478734887,0.43857357,65984.0,65983.0,0.2273175]
[1727478735163,0.55239275,65984.0,65983.0,0.2273175]
[1727478735428,0.151561,65980.0,65979.0,0.001656]
[1727478735668,0.26598357,65980.0,65979.0,0.001656]
[1727478736586,0.26598357,65980.0,65979.0,0.011656]
[1727478736796,0.26698357,65980.0,65979.0,0.011656]
[1727478737863,0.40135736,65980.0,65979.0,0.011656]
[1727478738965,0.151579,65972.0,65970.0,0.2273175]
[1727478739187,0.37981609,65972.0,65970.0,0.2273175]
[1727478739421,0.37981609,65972.0,65967.0,0.001656]
[1727478739659,0.26600157,65972.0,65967.0,0.001656]
[1727478739916,0.151579,65972.0,65967.0,0.001656]
[1727478740154,0.151579,65972.0,65971.0,0.026656]
[1727478740155,0.38175791,65972.0,65971.0,0.026656]
[1727478740602,0.26800157,65972.0,65971.0,0.026656]
[1727478741051,0.26700157,65972.0,65971.0,0.015656]
[1727478741293,0.35894176,65972.0,65971.0,0.026656]
[1727478741513,0.35694176,65972.0,65971.0,0.001656]
[1727478741743,0.35794173,65972.0,65971.0,0.008656]
[1727478741968,0.37480108,65972.0,65971.0,0.008656]
[1727478742189,0.46474032,65972.0,65971.0,0.001656]
[1727478742404,0.37380108,65972.0,65971.0,0.001656]
[1727478742633,0.46574032,65972.0,65971.0,0.001656]
[1727478742883,0.46674032,65972.0,65971.0,0.011656]
[1727478743100,0.46574032,65972.0,65971.0,0.001656]
[1727478743328,0.37580108,65972.0,65971.0,0.010656]
[1727478743542,0.37580108,65972.0,65971.0,0.001656]
[1727478743977,0.4449703,65972.0,65971.0,0.008656]
[1727478744187,0.4449703,65972.0,65971.0,0.001656]
[1727478744188,0.4429703,65972.0,65971.0,0.001656]
[1727478744414,0.44295506,65972.0,65971.0,0.001656]
[1727478744663,0.44395506,65972.0,65971.0,0.007656]
[1727478744890,0.37480108,65972.0,65971.0,0.007656]
[1727478745179,0.44295506,65972.0,65971.0,0.014656]
[1727478745414,0.37580108,65972.0,65971.0,0.014656]
[1727478745647,0.44295506,65972.0,65971.0,0.007656]
[1727478745842,0.44195506,65972.0,65971.0,0.001656]
[1727478746069,0.44195506,65972.0,65971.0,0.008656]
[1727478747457,0.37380108,65972.0,65971.0,0.008656]
[1727478748310,0.41920446,65972.0,65971.0,0.008656]
[1727478748515,0.44195506,65972.0,65971.0,0.008656]
[1727478749557,0.37380108,65972.0,65971.0,0.008656]
[1727478749760,0.44195506,65972.0,65971.0,0.008656]
[1727478750334,0.37380108,65972.0,65971.0,0.008656]
[1727478750747,0.46820108,65972.0,65971.0,0.008656]
[1727478751797,0.51358397,65972.0,65971.0,0.008656]
[1727478754209,0.51357132,65972.0,65971.0,0.008656]
[1727478755297,0.46820108,65972.0,65971.0,0.008656]
[1727478758088,0.54580108,65972.0,65971.0,0.008656]
[1727478763298,0.59115995,65972.0,65971.0,0.008656]
[1727478763954,0.51355995,65972.0,65971.0,0.008656]
[1727478767667,0.51357433,65972.0,65971.0,0.008656]
[1727478770469,0.46820108,65972.0,65971.0,0.008656]
[1727478772434,0.53626096,65972.0,65971.0,0.008656]
[1727478774203,0.53628852,65972.0,65971.0,0.008656]
[1727478775345,0.46820108,65972.0,65971.0,0.008656]
[1727478775834,0.53630516,65972.0,65971.0,0.008656]
[1727478776526,0.46820108,65972.0,65971.0,0.008656]
[1727478776768,0.54670108,65972.0,65971.0,0.008656]
[1727478777119,0.76018015,65972.0,65971.0,0.008656]
[1727478777229,0.64670108,65972.0,65971.0,0.008656]
[1727478777477,0.151588,65968.0,65967.0,0.001656]
[1727478777724,0.37954334,65968.0,65967.0,0.001656]
[1727478777980,0.36411057,65968.0,65967.0,0.001656]
[1727478778726,0.36511057,65968.0,65967.0,0.007656]
[1727478779259,0.36411057,65968.0,65967.0,0.001656]
[1727478779479,0.36411057,65968.0,65967.0,0.004656]
[1727478779959,0.36511057,65968.0,65967.0,0.008656]
[1727478780444,0.36411057,65968.0,65967.0,0.004656]
[1727478780682,0.52049863,65968.0,65967.0,0.006656]
[1727478784424,0.99342733,65968.0,65967.0,0.006656]
[1727478785402,0.99342227,65968.0,65967.0,0.006656]
[1727478785643,0.73244997,65968.0,65967.0,0.006656]
[1727478787565,0.73244842,65968.0,65967.0,0.006656]
[1727478789962,0.59599863,65968.0,65967.0,0.006656]
[1727478791542,0.52049863,65968.0,65967.0,0.006656]
[1727478791763,0.42239863,65968.0,65967.0,0.006656]
[1727478793692,0.28977672,65968.0,65967.0,0.006656]
[1727478795297,0.26601057,65968.0,65967.0,0.006656]
[1727478798350,0.2897767,65968.0,65967.0,0.006656]
[1727478800313,0.28907846,65968.0,65967.0,0.006656]
[1727478800534,0.304824,65971.0,65967.0,0.083456]
[1727478800535,0.001656,65971.0,65967.0,0.083456]
[1727478800800,0.11442257,65970.0,65967.0,0.083456]
[1727478801040,0.11442257,65970.0,65968.0,0.00682436]
[1727478801538,0.11442257,65970.0,65967.0,0.233046]
[1727478801539,0.001,65968.0,65967.0,0.085456]
[1727478801972,0.11442257,65970.0,65967.0,0.081456]
[1727478802411,0.11442257,65970.0,65968.0,0.004]
[1727478802412,0.11542257,65970.0,65968.0,0.004]
[1727478802662,0.151586,65969.0,65968.0,0.004]
[1727478802872,0.11542257,65970.0,65968.0,0.004]
[1727478803088,0.151586,65969.0,65968.0,0.004]
[1727478803519,0.26700657,65970.0,65968.0,0.004]
[1727478803732,0.11542257,65970.0,65968.0,0.005]
[1727478804177,0.11542257,65970.0,65968.0,0.004]
[1727478804644,0.11442257,65970.0,65968.0,0.151588]
[1727478805107,0.11442257,65970.0,65968.0,0.005]
[1727478805523,0.11442257,65970.0,65969.0,0.151586]
[1727478805963,0.11442257,65970.0,65969.0,0.150586]
[1727478806841,0.11542257,65970.0,65969.0,0.150586]
[1727478807064,0.11442257,65970.0,65969.0,0.150586]
[1727478807324,0.11642257,65970.0,65969.0,0.160586]
[1727478808425,0.11642257,65970.0,65969.0,0.01]
[1727478808644,0.11642257,65970.0,65969.0,0.161586]
[1727478809704,0.11642257,65970.0,65969.0,0.01]
[1727478813007,0.11642257,65970.0,65969.0,0.161586]
[1727478815256,0.11642257,65970.0,65969.0,0.16833983]
[1727478816739,0.11642257,65970.0,65969.0,0.16916783]
[1727478816940,0.11807857,65970.0,65969.0,0.16916783]
[1727478818896,0.26882493,65970.0,65969.0,0.01758183]
[1727478819109,0.42040893,65970.0,65969.0,0.01758183]
[1727478819322,0.26882493,65970.0,65969.0,0.01758183]
[1727478819526,0.26882493,65970.0,65969.0,0.010828]
[1727478819743,0.42040893,65970.0,65969.0,0.0176122]
[1727478819973,0.26882493,65970.0,65969.0,0.010828]
[1727478820185,0.42040893,65970.0,65969.0,0.0176122]
[1727478820402,0.26882493,65970.0,65969.0,0.0176122]
[1727478823538,0.50210893,65970.0,65969.0,0.0176122]
[1727478823761,0.50210893,65970.0,65969.0,0.010828]
[1727478824214,0.50210893,65970.0,65969.0,0.01761689]
[1727478824432,0.11807857,65970.0,65969.0,0.16920289]
[1727478824645,0.11807857,65970.0,65969.0,0.01761689]
[1727478825753,0.11807857,65970.0,65969.0,0.010828]
[1727478825972,0.11807857,65970.0,65969.0,0.01761689]
[1727478826165,0.11807857,65970.0,65969.0,0.010828]
[1727478826380,0.11807857,65970.0,65969.0,0.01761689]
[1727478829383,0.15438993,65970.0,65969.0,0.01761689]
[1727478829800,0.15438993,65970.0,65969.0,0.16920289]
[1727478830328,0.11807857,65970.0,65969.0,0.16920289]
[1727478837413,0.003656,65970.0,65969.0,0.16920289]
[1727478863760,0.001656,65970.0,65969.0,0.15920289]
[1727478863957,0.003656,65970.0,65969.0,0.17120289]
[1727478872590,0.003656,65970.0,65969.0,0.19087304]
[1727478875979,0.003656,65970.0,65969.0,0.19084913]
[1727478879731,0.003656,65970.0,65969.0,0.19087406]
[1727478882926,0.003656,65970.0,65969.0,0.17120289]
[1727478883724,0.003656,65970.0,65969.0,0.19087547]
[1727478885283,0.003656,65970.0,65969.0,0.17120289]
[1727478885513,0.003656,65970.0,65969.0,0.19087703]
[1727478888972,0.003656,65970.0,65969.0,0.17120289]
[1727478889192,0.003656,65970.0,65969.0,0.19084992]
[1727478892382,0.180656,65970.0,65969.0,0.19084992]
[1727478895582,0.180656,65970.0,65969.0,0.19091852]
[1727478896459,0.180656,65970.0,65969.0,0.1909063]
[1727478896706,0.180656,65970.0,65969.0,0.17120289]
[1727478901866,0.24593274,65970.0,65969.0,0.17120289]
[1727478923688,0.180656,65970.0,65969.0,0.17120289]
[1727478929418,0.102456,65970.0,65969.0,0.17120289]
[1727478951128,0.003656,65970.0,65969.0,0.17120289]
[1727478958293,0.003656,65970.0,65969.0,0.17328384]
[1727478960813,0.04911603,65970.0,65969.0,0.17328384]
[1727478961466,0.14871603,65970.0,65969.0,0.17328384]
[1727478961893,0.14871603,65970.0,65969.0,0.02169784]
[1727478962322,0.40233004,65970.0,65969.0,0.02169784]
[1727478962545,0.33414,65970.0,65969.0,0.012828]
[1727478963033,0.40233004,65970.0,65969.0,0.012828]
[1727478963246,0.33414,65970.0,65969.0,0.012828]
[1727478963889,0.37958941,65970.0,65969.0,0.012828]
[1727478964094,0.46706887,65970.0,65969.0,0.012828]
[1727478967385,0.51250987,65970.0,65969.0,0.012828]
[1727478968362,0.46706887,65970.0,65969.0,0.012828]
[1727478969192,0.5124923,65970.0,65969.0,0.012828]
[1727478972748,0.46706887,65970.0,65969.0,0.012828]
[1727478972984,0.5124923,65970.0,65969.0,0.012828]
[1727478974123,0.46706887,65970.0,65969.0,0.012828]
[1727478974348,0.5124923,65970.0,65969.0,0.012828]
[1727478974582,0.46706887,65970.0,65969.0,0.012828]
[1727478974971,0.5124923,65970.0,65969.0,0.012828]
[1727478975235,0.46706887,65970.0,65969.0,0.012828]
[1727478975682,0.5124923,65970.0,65969.0,0.012828]
[1727478975953,0.33414,65970.0,65969.0,0.012828]
[1727478976370,0.40233004,65970.0,65969.0,0.012828]
[1727478976594,0.40225929,65970.0,65969.0,0.012828]
[1727478977493,0.40225444,65970.0,65969.0,0.012828]
[1727478977712,0.46706161,65970.0,65969.0,0.012828]
[1727478977853,0.53517523,65970.0,65969.0,0.012828]
[1727478982810,0.53516213,65970.0,65969.0,0.012828]
[1727478983368,0.46706161,65970.0,65969.0,0.012828]
[1727478984188,0.53516213,65970.0,65969.0,0.012828]
[1727478985409,0.46706161,65970.0,65969.0,0.012828]
[1727478986408,0.53516213,65970.0,65969.0,0.012828]
[1727478990434,0.46706161,65970.0,65969.0,0.012828]
[1727478990669,0.58056248,65970.0,65969.0,0.012828]
[1727478994692,0.46706161,65970.0,65969.0,0.012828]
[1727478994904,0.58056248,65970.0,65969.0,0.012828]
[1727478995625,0.46706161,65970.0,65969.0,0.012828]
[1727478999712,0.55782729,65970.0,65969.0,0.012828]
[1727479003828,0.55782729,65970.0,65969.0,0.01100836]
[1727479005868,0.46706161,65970.0,65969.0,0.01100836]
[1727479006092,0.5578567,65970.0,65969.0,0.01100836]
[1727479006322,0.58052481,65970.0,65969.0,0.01100836]
[1727479006814,0.46706161,65970.0,65969.0,0.01100836]
[1727479007685,0.46706161,65970.0,65969.0,0.01183636]
[1727479008318,0.58052481,65970.0,65969.0,0.01183636]
[1727479010815,0.57952481,65970.0,65969.0,0.006828]
[1727479011262,0.58052481,65970.0,65969.0,0.011828]
[1727479011727,0.57952481,65970.0,65969.0,0.005828]
[1727479011955,0.57952481,65970.0,65969.0,0.010828]
[1727479012403,0.57852481,65970.0,65969.0,0.005828]
[1727479013115,0.57852481,65970.0,65969.0,0.010828]
[1727479013333,0.46506161,65970.0,65969.0,0.005828]
[1727479013551,0.57855895,65970.0,65969.0,0.002828]
[1727479013772,0.46506161,65970.0,65969.0,0.004828]
[1727479014464,0.55586333,65970.0,65969.0,0.004828]
[1727479014699,0.46506161,65970.0,65969.0,0.004828]
[1727479015158,0.57855895,65970.0,65969.0,0.004828]
[1727479015654,0.57856701,65970.0,65969.0,0.004828]
[1727479016313,0.57856701,65970.0,65969.0,0.000828]
[1727479016749,0.46806161,65970.0,65969.0,0.000828]
[1727479017005,0.58156701,65970.0,65969.0,0.000828]
[1727479017217,0.47206161,65970.0,65969.0,0.000828]
[1727479017425,0.5825728,65970.0,65969.0,0.000828]
[1727479017836,0.46906161,65970.0,65969.0,0.000828]
[1727479018538,0.46506161,65970.0,65969.0,0.000828]
[1727479018747,0.46906161,65970.0,65969.0,0.000828]
[1727479019213,0.46506161,65970.0,65969.0,0.000828]
[1727479019444,0.46906161,65970.0,65969.0,0.000828]
[1727479019973,0.46706161,65970.0,65969.0,0.000828]
[1727479020434,0.46806161,65970.0,65969.0,0.000828]
[1727479021637,0.46706161,65970.0,65969.0,0.000828]
[1727479022132,0.47006161,65970.0,65969.0,0.000828]
[1727479042425,0.60632368,65970.0,65969.0,0.000828]
[1727479042651,0.47006161,65970.0,65969.0,0.000828]
[1727479042872,0.60632368,65970.0,65969.0,0.000828]
[1727479043323,0.47006161,65970.0,65969.0,0.000828]
[1727479044032,0.60632368,65970.0,65969.0,0.000828]
[1727479044480,0.47006161,65970.0,65969.0,0.000828]
[1727479046259,0.60632368,65970.0,65969.0,0.000828]
[1727479046506,0.47006161,65970.0,65969.0,0.000828]
[1727479054746,0.60639236,65970.0,65969.0,0.000828]
[1727479054911,0.47006161,65970.0,65969.0,0.000828]
[1727479059576,0.60638815,65970.0,65969.0,0.000828]
[1727479059781,0.47006161,65970.0,65969.0,0.000828]
[1727479060641,0.60638815,65970.0,65969.0,0.000828]
[1727479064995,0.60632359,65970.0,65969.0,0.000828]
[1727479069892,0.6063308,65970.0,65969.0,0.000828]
[1727479074800,0.60634394,65970.0,65969.0,0.000828]
[1727479075607,0.47006161,65970.0,65969.0,0.000828]
[1727479075808,0.60634712,65970.0,65969.0,0.000828]
[1727479079629,0.60636197,65970.0,65969.0,0.000828]
[1727479081360,0.60636492,65970.0,65969.0,0.000828]
[1727479081566,0.47006161,65970.0,65969.0,0.000828]
[1727479082024,0.60636522,65970.0,65969.0,0.000828]
[1727479082483,0.44353157,65959.0,65958.0,0.0511053]
[1727479082708,0.44353157,65959.0,65958.0,0.06113091]
[1727479082933,0.44353157,65959.0,65958.0,0.01168161]
[1727479083144,0.45939053,65959.0,65958.0,0.001656]
[1727479083372,0.60768659,65959.0,65958.0,0.001656]
[1727479083624,0.74387316,65959.0,65958.0,0.001656]
[1727479083846,0.74487331,65959.0,65958.0,0.010656]
[1727479084085,0.74487331,65959.0,65953.0,0.000828]
[1727479084086,0.15162,65954.0,65953.0,0.000828]
[1727479084302,0.5786761,65954.0,65953.0,0.000828]
[1727479084967,0.29192257,65954.0,65945.0,0.0491932]
[1727479085190,0.29192257,65954.0,65932.0,0.2281455]
[1727479085191,0.151648,65942.0,65941.0,0.2273175]
[1727479085414,0.15165,65941.0,65940.0,35.79896849]
[1727479085700,0.19698669,65941.0,65940.0,35.34564214]
[1727479085894,0.27706683,65941.0,65940.0,35.34564214]
[1727479086344,0.32236794,65941.0,65940.0,35.34564214]
[1727479086782,0.32236794,65941.0,65940.0,35.34764214]
[1727479086994,0.32236794,65941.0,65940.0,35.34564214]
[1727479087500,0.37706683,65941.0,65940.0,35.33498614]
[1727479087729,0.45476683,65941.0,65940.0,35.33498614]
[1727479087975,0.45476683,65941.0,65940.0,34.88065739]
[1727479088400,0.45676683,65941.0,65940.0,34.88065739]
[1727479089486,0.55086683,65941.0,65940.0,34.88065739]
[1727479089908,0.62487342,65941.0,65940.0,34.88065739]
[1727479090120,0.55686683,65941.0,65940.0,34.88065739]
[1727479090335,0.62466202,65941.0,65940.0,34.88065739]
[1727479090771,0.62366202,65941.0,65940.0,34.88065739]
[1727479091185,0.62566202,65941.0,65940.0,34.88065739]
[1727479091402,0.55386683,65941.0,65940.0,34.88065739]
[1727479091610,0.55886683,65941.0,65940.0,34.88065739]
[1727479091826,0.56786683,65941.0,65940.0,34.88065739]
[1727479092489,0.6060186,65941.0,65940.0,34.88065739]
[1727479092699,0.57086683,65941.0,65940.0,34.88065739]
[1727479093134,0.55886683,65941.0,65940.0,34.88065739]
[1727479093393,0.54986683,65941.0,65940.0,34.88065739]
[1727479093613,0.56186683,65941.0,65940.0,34.88065739]
[1727479093835,0.6762894,65941.0,65940.0,34.88065739]
[1727479094063,0.6642894,65941.0,65940.0,34.88065739]
[1727479094272,0.6762894,65941.0,65940.0,34.88065739]
[1727479094482,0.46676683,65941.0,65940.0,34.88065739]
[1727479094697,0.5941894,65941.0,65940.0,34.88065739]
[1727479095165,0.27665,65941.0,65940.0,34.88065739]
[1727479095614,0.39107257,65941.0,65940.0,34.88065739]
[1727479095863,0.37807257,65941.0,65940.0,34.88065739]
[1727479096334,0.37507257,65941.0,65940.0,34.88065739]
[1727479096784,0.38307257,65941.0,65940.0,34.88065739]
[1727479098490,0.39893153,65941.0,65940.0,34.88065739]
[1727479099025,0.39893153,65941.0,65940.0,34.88148539]
[1727479099289,0.29893153,65941.0,65940.0,34.88148539]
[1727479099563,0.37790147,65941.0,65940.0,34.88148539]
[1727479100265,0.29893153,65941.0,65940.0,34.88148539]
[1727479100442,0.29893153,65941.0,65940.0,34.8888376]
[1727479107107,0.29893153,65941.0,65940.0,29.6425843]
[1727479107108,0.57713153,65941.0,65940.0,29.6425843]
[1727479107320,4.75331253,65941.0,65940.0,25.96228785]
[1727479107540,5.67737428,65941.0,65940.0,25.54681243]
[1727479107774,5.62088234,65941.0,65940.0,24.2810586]
[1727479107998,5.36213828,65941.0,65940.0,21.0535241]
[1727479108225,5.35700232,65941.0,65940.0,17.56983011]
[1727479108442,5.35700232,65941.0,65940.0,17.15474134]
[1727479108443,7.146474,65941.0,65940.0,17.15474134]
[1727479108661,7.27163578,65941.0,65940.0,17.07384209]
[1727479108894,7.29174731,65941.0,65940.0,16.99361782]
[1727479109147,7.26141245,65941.0,65940.0,16.30377146]
[1727479109365,7.26141245,65941.0,65940.0,16.27677146]
[1727479109366,7.08221813,65941.0,65940.0,16.27677146]
[1727479109587,7.1966407,65941.0,65940.0,16.26677146]
[1727479109806,7.1966407,65941.0,65940.0,15.76683629]
[1727479109807,7.2106407,65941.0,65940.0,15.76683629]
[1727479110247,7.28571592,65941.0,65940.0,15.39924325]
[1727479110502,7.1462531,65941.0,65940.0,15.39924325]
[1727479110707,7.01131732,65941.0,65940.0,15.39924325]
[1727479110919,7.02531732,65941.0,65940.0,15.39924325]
[1727479111129,7.02531732,65941.0,65940.0,15.36882825]
[1727479111561,7.02531732,65941.0,65940.0,15.24717225]
[1727479111562,7.01131732,65941.0,65940.0,15.24717225]
[1727479111977,6.86193532,65941.0,65940.0,15.24717225]
[1727479112180,6.87172218,65941.0,65940.0,15.18634425]
[1727479112392,6.87172218,65941.0,65940.0,15.09510225]
[1727479112393,6.89972218,65941.0,65940.0,15.09510225]
[1727479112604,6.89972218,65941.0,65940.0,14.78546104]
[1727479112817,6.87172218,65941.0,65940.0,14.78546104]
[1727479113055,6.88572218,65941.0,65940.0,14.64815665]
[1727479113252,6.88572218,65941.0,65940.0,14.40222461]
[1727479113677,2.31516918,65941.0,65940.0,14.40222461]
[1727479114087,2.32916918,65941.0,65940.0,14.25015961]
[1727479114306,7.37916918,65941.0,65940.0,14.25015961]
[1727479114523,6.96805118,65941.0,65940.0,14.25015961]
[1727479114735,6.98205118,65941.0,65940.0,14.25015961]
[1727479115162,6.98205118,65941.0,65940.0,14.18933361]
[1727479115376,6.98205118,65941.0,65940.0,14.09809461]
[1727479115616,6.93993965,65941.0,65940.0,13.7884534]
[1727479116036,6.93993965,65941.0,65940.0,13.7580404]
[1727479116255,6.93993965,65941.0,65940.0,13.39759698]
[1727479116921,7.0521549,65941.0,65940.0,13.39759698]
[1727479117133,5.81888739,65941.0,65940.0,13.24553198]
[1727479117355,5.70667065,65941.0,65940.0,13.24553198]
[1727479117999,5.70667065,65941.0,65940.0,13.21511898]
[1727479118259,5.70667065,65941.0,65940.0,13.18470598]
[1727479118465,5.70667065,65941.0,65940.0,13.09346698]
[1727479119296,5.70667065,65941.0,65940.0,13.00222798]
[1727479119503,5.81888739,65941.0,65940.0,12.94140198]
[1727479120243,5.81888739,65941.0,65940.0,12.91098898]
[1727479120465,5.81888739,65941.0,65940.0,12.78933698]
[1727479121078,5.81888807,65941.0,65940.0,12.66768498]
[1727479121289,5.81889885,65941.0,65940.0,12.63727198]
[1727479121504,5.82154225,65941.0,65940.0,12.63727198]
[1727479121711,5.88402925,65941.0,65940.0,12.63727198]
[1727479121935,5.77180105,65941.0,65940.0,12.63727198]
[1727479122172,5.88403276,65941.0,65940.0,12.54603298]
[1727479122393,5.88403276,65941.0,65940.0,12.48520698]
[1727479122394,5.77180105,65941.0,65940.0,12.48520698]
[1727479123221,5.77180105,65941.0,65940.0,12.45479398]
[1727479123429,5.77180105,65941.0,65940.0,12.36355498]
[1727479124261,5.77180105,65941.0,65940.0,12.33314198]
[1727479124510,5.77180105,65941.0,65940.0,12.27231598]
[1727479124712,5.77180105,65941.0,65940.0,12.21148998]
[1727479124917,5.76980105,65941.0,65940.0,12.21148998]
[1727479125124,5.76980105,65941.0,65940.0,12.15066398]
[1727479125333,5.76980105,65941.0,65940.0,12.05942498]
[1727479125537,5.77180105,65941.0,65940.0,12.05942498]
[1727479125982,5.77180105,65941.0,65940.0,12.02901198]
[1727479127022,5.77180105,65941.0,65940.0,11.97513198]
[1727479127658,5.77180105,65941.0,65940.0,11.91430598]
[1727479128114,5.74801419,65941.0,65940.0,11.76224098]
[1727479128368,5.74801419,65941.0,65940.0,11.73182798]
[1727479128572,5.74801419,65941.0,65940.0,11.70141498]
[1727479128996,5.74601419,65941.0,65940.0,11.67100198]
[1727479129215,5.74801419,65941.0,65940.0,11.61017598]
[1727479129421,5.74801419,65941.0,65940.0,11.54934998]
[1727479129632,5.74601419,65941.0,65940.0,11.54934998]
[1727479129841,5.74801419,65941.0,65940.0,11.54934998]
[1727479130061,5.74801419,65941.0,65940.0,11.51893698]
[1727479130262,5.74801419,65941.0,65940.0,11.45811098]
[1727479130496,5.74801419,65941.0,65940.0,11.39728498]
[1727479130727,5.74601419,65941.0,65940.0,11.39728498]
[1727479130982,5.74801419,65941.0,65940.0,11.39728498]
[1727479131222,5.74801419,65941.0,65940.0,11.24521998]
[1727479131760,5.74601419,65941.0,65940.0,11.24521998]
[1727479132014,5.74801419,65941.0,65940.0,11.18439398]
[1727479132253,5.77180083,65941.0,65940.0,11.12356798]
[1727479132504,5.71143315,65941.0,65940.0,11.09315498]
[1727479133217,5.71143315,65941.0,65940.0,11.00191598]
[1727479133464,5.71143315,65941.0,65940.0,10.97150298]
[1727479133730,5.70483315,65941.0,65940.0,10.94108998]
[1727479133984,5.70483315,65941.0,65940.0,10.91067698]
[1727479135304,5.83949405,65941.0,65940.0,10.84985098]
[1727479135532,5.83949405,65941.0,65940.0,10.81943798]
[1727479135746,5.83968157,65941.0,65940.0,10.68881214]
[1727479136374,6.10489015,65941.0,65940.0,10.68881214]
[1727479136580,6.14431383,65941.0,65940.0,10.68881214]
[1727479137025,5.87910525,65941.0,65940.0,10.65839914]
[1727479137235,6.00949606,65941.0,65940.0,10.59757314]
[1727479137440,6.00949606,65941.0,65940.0,10.56716014]
[1727479137643,6.00949606,65941.0,65940.0,10.53674714]
[1727479138060,2.60388306,65941.0,65940.0,10.53674714]
[1727479138277,2.56445938,65941.0,65940.0,10.47592114]
[1727479138479,2.56445938,65941.0,65940.0,10.44550814]
[1727479138689,7.65388306,65941.0,65940.0,10.44550814]
[1727479138894,7.6539998,65941.0,65940.0,10.44550814]
[1727479139102,7.38864383,65941.0,65940.0,10.31122045]
[1727479139326,7.65394132,65941.0,65940.0,10.31122045]
[1727479139523,7.78884878,65941.0,65940.0,10.31122045]
[1727479139942,7.65394132,65941.0,65940.0,10.31122045]
[1727479140502,7.78902883,65941.0,65940.0,10.31122045]
[1727479140720,7.52356054,65941.0,65940.0,10.31122045]
[1727479141226,7.7891407,65941.0,65940.0,10.31122045]
[1727479141436,7.65422061,65941.0,65940.0,10.31122045]
[1727479143101,7.67801048,65941.0,65940.0,10.31122045]
[1727479143942,7.38252848,65941.0,65940.0,10.31122045]
[1727479144158,5.18579048,65941.0,65940.0,10.31122045]
[1727479144699,5.1463668,65941.0,65940.0,10.31122045]
[1727479144911,5.15795769,65941.0,65940.0,10.31122045]
[1727479145350,5.18595769,65941.0,65940.0,10.15916545]
[1727479145550,5.17195769,65941.0,65940.0,10.15916545]
[1727479145790,5.15795769,65941.0,65940.0,9.66274071]
[1727479146003,5.1323668,65941.0,65940.0,9.59496671]